Cogmind - Beta 13 @@@ ROGUE MODE // 2024.04.01 @ 15:37:32 Player: SnowyImp Result: Destroyed by S-10 Pest with Light Assault Rifle Performance ------------- Evolutions (1) 500 Regions Visited (2) 400 Robots Destroyed (9) 45 Value Destroyed (221) 221 Prototype IDs (0) 0 Alien Tech Used (0) 0 Bonus (0) 0 TOTAL SCORE: 1166 Bonus ------- None Cogmind --------- Core Integrity 0/400 Matter 287/500 Energy 100/100 System Corruption 1% Temperature Cool (0) Movement Core (100) Ox1 Location -9/Materials Parts ------- > --- POWER (1) -------- (None) > --- PROPULSION (4) --- (None) > --- UTILITY (2) ------ High-capacity Matter Pod Signal Interpreter > --- WEAPON (2) ------- (None) > --- INVENTORY (5) ---- Light Treads Light Treads Particle Gun Peak State ------------ > --- POWER ------------ Light Ion Engine > --- PROPULSION ------- Aluminum Leg Aluminum Leg Aluminum Leg Aluminum Leg > --- UTILITY ---------- Sensor Array Signal Interpreter > --- WEAPON ----------- Assault Rifle Assault Rifle > --- INVENTORY -------- Light Treads Light Treads Particle Gun [Rating: 9] Favorites ----------- Power Light Ion Engine Engine Light Ion Engine Propulsion Aluminum Leg Treads Light Treads Leg Aluminum Leg Utility Small Storage Unit Device Sensor Array Storage Small Storage Unit Processor Signal Interpreter Protection Light Armor Plating Weapon Assault Rifle Ballistic Gun Assault Rifle Build | -11 -10 -9 ------- Run | Yrd Mat Mat Slots Evolved 2 | . . 2 Power . | . . . Propulsion 2 | . . 2 Utility . | . . . Weapon . | . . . Parts Attached 18 | 8 7 3 Power 2 | 1 1 . Engine 2 | 1 1 . Core . | . . . Reactor . | . . . Propulsion 8 | 4 2 2 Treads 2 | 2 . . Leg 6 | 2 2 2 Wheel . | . . . Hover . | . . . Flight . | . . . Utility 5 | 1 3 1 Device 1 | . 1 . Storage 2 | 1 . 1 Processor 1 | . 1 . Hackware . | . . . Protection 1 | . 1 . Artifact . | . . . Weapon 3 | 2 1 . Energy Gun . | . . . Energy Cannon . | . . . Ballistic Gun 3 | 2 1 . Ballistic Cannon . | . . . Launcher . | . . . Special Weapon . | . . . Impact Weapon . | . . . Slashing Weapon . | . . . Piercing Weapon . | . . . Special Melee Weapon . | . . . Unidentified Prototypes . | . . . Parts Lost 8 | . . 8 Power 1 | . . 1 Propulsion 4 | . . 4 Utility 1 | . . 1 Weapon 2 | . . 2 Highest Loss Streak 7 | . . 7 To Critical Strikes . | . . . Average Slot Usage (%) 85 | . 97 71 Engine 10 | . 14 6 Leg 30 | . 28 33 Device 6 | . 8 3 Storage 6 | . 10 . Processor 6 | . 3 11 Protection 1 | . 3 . Ballistic Gun 21 | . 28 14 Naked Turns . | . . . Heaviest Build 15 | 12 15 8 Greatest Support 40 | 40 20 40 Greatest Overweight (x) 2 | 2 . 1 Average Overweight (x) . | . . . Largest Inventory Capacity 8 | 8 8 5 Average Capacity 6 | 7 7 5 Most Carried 5 | 2 5 4 Average Carried 2 | 1 3 3 Final Capacity 8 | 8 5 5 Final Carried 5 | 2 5 3 Class Distribution -------------------- 100% | Mutant Dominant Class ---------------- Mutant | -10/Materials Mutant | -9/Materials Resources | -11 -10 -9 ----------- Run | Yrd Mat Mat Matter Collected 446 | 272 71 103 Remotely . | . . . Salvage Created 270 | . 162 108 Parts 20 | . 13 7 Haulers Intercepted . | . . . Recyclers Shooed . | . . . Parts Field Recycled . | . . . Retrieved Matter . | . . . Parts Self-Destructed . | . . . Prevented . | . . . Kills | -11 -10 -9 ------- Run | Yrd Mat Mat Combat Hostiles Destroyed 9 | . 7 2 Guns 9 | . 7 2 Classes Destroyed 3 | . 2 1 Swarmer 5 | . 5 . Grunt 2 | . 2 . Sentry 2 | . . 2 Best Kill Streak 3 | . 3 1 Combat Bots Only 3 | . 3 1 Max Kills in Single Turn 2 | . 2 1 Gunslinging 1 | . 1 . Exploded . | . . . Melee . | . . . Uniques/NPCs Destroyed . | . . . Combat | -11 -10 -9 -------- Run | Yrd Mat Mat Hostile Shots Fired 157 | . 35 122 Missed 65 | . 13 52 Damage Taken 1114 | . 214 900 Core 431 | . 24 407 Absorbed by Shields . | . . . Core Remaining (%) 95 | 100 90 . Volleys Fired 22 | . 14 8 Largest 2 | . 2 2 Hottest 40 | . 40 40 Shots Fired 44 | . 28 16 Gun 44 | . 28 16 Cannon . | . . . Launcher . | . . . Special . | . . . Kinetic 44 | . 28 16 Thermal . | . . . Explosive . | . . . Electromagnetic . | . . . Robot Hit Streak 7 | . 7 5 Robot Miss Streak 4 | . 1 4 Penetration Max . | . . . Secondary Targets 2 | . 2 . Max Gunslinging Chain 1 | . 1 . Shots Hit Robots 27 | . 18 9 Core Hits 16 | . 10 6 Critical Kills . | . . . Critical Parts Destroyed . | . . . Critical Strikes . | . . . Melee Attacks . | . . . Impact . | . . . Slashing . | . . . Piercing . | . . . Sneak Attacks . | . . . Combat Hostiles . | . . . Follow-up Attacks . | . . . Damage Inflicted 346 | . 240 106 Guns 341 | . 240 101 Cannons . | . . . Explosions . | . . . Melee . | . . . Ramming 5 | . . 5 Kinetic 341 | . 240 101 Thermal . | . . . Explosive . | . . . Electromagnetic . | . . . Impact . | . . . Slashing . | . . . Piercing . | . . . Highest Corruption 1 | . . 1 Average Corruption 1 | . . 1 Corruption Purged . | . . . Corruption Blocked . | . . . Overload Shots . | . . . Overflow Damage . | . . . Projectiles . | . . . Explosions . | . . . Melee . | . . . Knockbacks . | . . . Impact . | . . . Kinetic . | . . . Secondary . | . . . Self-Inflicted Damage 1 | . . 1 Shots . | . . . Rammed 2 | . . 2 Targets Rammed 4 | . . 4 Kicked 2 | . . 2 Crushed . | . . . Highest Temperature 11 | . 2 11 Average Temperature 3 | . 2 6 Received Heat Transfer 204 | . 54 150 Siege Activations . | . . . Robots Corrupted . | . . . Combat Hostiles . | . . . Parts Fried . | . . . Impact Corruptions . | . . . Robots Melted . | . . . Combat Hostiles . | . . . Parts Melted . | . . . Heat Transferred . | . . . Parts Sabotaged . | . . . Parts Stolen . | . . . Parts Stripped . | . . . Power Chain Reactions . | . . . Alert | -11 -10 -9 ------- Run | Yrd Mat Mat Peak Influence 201 | . 197 201 Initial 83 | . . 83 Average 92 | . 96 133 Maximum Alert Level 1 | . . 1 Low Security (%) 99 | 100 100 99 Level 1 . | . . . Level 2 . | . . . Level 3 . | . . . Level 4 . | . . . Level 5 . | . . . High Security . | . . . Max Security . | . . . Squads Dispatched 2 | . 1 1 Investigation 1 | . . 1 Extermination . | . . . Reinforcement 1 | . 1 . Assault . | . . . Garrison . | . . . Intercept . | . . . Searches Triggered . | . . . Construction Impeded . | . . . Haulers Reinforced . | . . . Active Scanning Responses . | . . . Cargo Convoy Interrupts . | . . . Stealth | -11 -10 -9 --------- Run | Yrd Mat Mat Distress Signals 2 | . 1 1 Communications Jammed . | . . . Distress Signals . | . . . Times Spotted 28 | . 11 17 Peak Tracking Total 11 | . 4 11 Tactical Retreats 4 | . . 4 Traps | -11 -10 -9 ------- Run | Yrd Mat Mat Traps Triggered 3 | . 1 2 Indirectly . | . . . Trap Hack Attempts . | . . . Triggered . | . . . Disarmed . | . . . Reprogrammed . | . . . Reused . | . . . Traps Extracted . | . . . Installed . | . . . Triggered . | . . . Machines | -11 -10 -9 ---------- Run | Yrd Mat Mat Machines Disabled . | . . . Max in Single Turn . | . . . Machines Repaired . | . . . Machines Dismantled . | . . . Machines Sabotaged . | . . . Overloaded Fab Kills . | . . . Hacking | -11 -10 -9 --------- Run | Yrd Mat Mat Machines Accessed 5 | . 3 2 Terminals 4 | . 2 2 Fabricators . | . . . Repair Stations . | . . . Recycling Units 1 | . 1 . Scanalyzers . | . . . Garrison Access . | . . . Total Hacks 19 | . 11 8 Successful 6 | . 3 3 Failed 13 | . 8 5 Catastrophic 2 | . 2 . Database Lockouts . | . . . Manual 2 | . . 2 Terminals 17 | . 9 8 Fabricators . | . . . Repair Stations . | . . . Recycling Units 2 | . 2 . Scanalyzers . | . . . Garrison Access . | . . . Terminal Hacks 6 | . 3 3 Emergency Access Points 1 | . 1 . Assault Status 1 | . . 1 Hauler Manifests 1 | . 1 . Registered Components 2 | . 1 1 Registered Prototypes 1 | . . 1 Fabricator Hacks . | . . . Repair Station Hacks . | . . . Recycling Unit Hacks . | . . . Scanalyzer . | . . . Garrison Access Hacks . | . . . Unauthorized Hacks . | . . . Terminals . | . . . Fabricators . | . . . Repair Stations . | . . . Recycling Units . | . . . Scanalyzers . | . . . Garrison Access . | . . . Data Cores Recovered . | . . . Used . | . . . Hacking Detections 6 | . 3 3 Full Trace Events 1 | . . 1 Feedback Events . | . . . Feedback Blocked . | . . . Robot Schematics Acquired . | . . . Robots Built . | . . . Authchips . | . . . Time . | . . . Total Robot Build Rating . | . . . Part Schematics Acquired . | . . . Parts Built . | . . . Authchips . | . . . Time . | . . . Total Part Build Rating . | . . . Parts Repaired . | . . . Time . | . . . Parts Recycled . | . . . Recycled Matter . | . . . Retrieved Matter . | . . . Retrieved Components . | . . . Parts Scanalyzed . | . . . Part Schematics Acquired . | . . . Parts Damaged . | . . . Bothacking | -11 -10 -9 ------------ Run | Yrd Mat Mat Used RIF Installer . | . . . Robots Hacked . | . . . Non-combat . | . . . Combat . | . . . Robot Hacks Applied . | . . . Relay Couplers Released . | . . . Fabnet Peak Effective % . | . . . Robots Rewired . | . . . Allies Hacked . | . . . Hacks Repelled . | . . . Allies | -11 -10 -9 -------- Run | Yrd Mat Mat Total Allies . | . . . Largest Group . | . . . Highest-Rated Group . | . . . Highest-Rated Ally . | . . . Total Orders . | . . . Ally Attacks . | . . . Total Damage . | . . . Kills . | . . . Allies Corrupted . | . . . Allies Melted . | . . . Intel | -11 -10 -9 ------- Run | Yrd Mat Mat Robot Analysis Total . | . . . Derelict Logs Recovered . | . . . Drone Launches . | . . . Drone Recoveries . | . . . Exploration | -11 -10 -9 ------------- Run | Yrd Mat Mat Turns Passed 615 | 110 275 230 Spaces Moved 415 | 74 176 165 Core 35 | 12 . 23 Treads 12 | 12 . . Legs 368 | 50 176 142 Wheels . | . . . Hover . | . . . Flight . | . . . Fastest Speed 50 | 50 120 50 Average Speed 116 | 117 120 113 Slowest Speed 160 | 160 120 120 Overloaded Moves . | . . . Propulsion Burnouts . | . . . Robots Hopped . | . . . Cave-ins Triggered . | . . . Exploration Rate (%) 19 | 4 38 17 Regions Visited 2 Branch Regions . Pre-discovered Areas . | . . . Known Exits Taken 1 | . 1 . Unknown Exits Taken 1 | 1 . . Scrap Searched . | . . . Spaces Dug . | . . . Terrain Destroyed . | . . . Melee . | . . . Projectile . | . . . AOE . | . . . Terrain Rammed . | . . . Walls Destroyed . | . . . Machines Disabled . | . . . Actions | -11 -10 -9 --------- Run | Yrd Mat Mat Total 494 | 93 210 191 Wait 31 | 10 10 11 Move 413 | 73 175 165 Hop . | . . . Pick Up 3 | 2 1 . Fast Attach 11 | 6 4 1 Attach 2 | . . 2 Detach . | . . . Swap 5 | 2 3 . Drop 3 | . 3 . Fire 22 | . 14 8 Melee . | . . . Ram 2 | . . 2 Kick 2 | . . 2 Crush . | . . . Escape Stasis . | . . . Rewire . | . . . Trap . | . . . Miscellaneous . | . . . Route ------- -11/Scrapyard -10/Materials (discovered 2 exits: *Mat / [*Min]) -9/Materials History --------- Turn | Location | Event 12 | -11/Scrapyard | Discovered new exit (range 16) 111 | -11/Scrapyard | Entered Materials 316 | -10/Materials | Discovered new exit (range 13) 318 | -10/Materials | Build established: Mutant 379 | -10/Materials | Discovered new exit (range 8) 385 | -10/Materials | Identified exit to Materials 386 | -10/Materials | Entered another Materials area 386 | -9/Materials | Evolved 2 slots: Propulsion x2 569 | -9/Materials | Core integrity fell below 50% 606 | -9/Materials | Core integrity fell below 20% 616 | -9/Materials | Destroyed by S-10 Pest with Light Assault Rifle Last Messages --------------- >>Enumerate(Assaults) Retrieving latest reported positions... No active assault squads found. >>Inventory(Components) Retrieving component inventory records... Found 2 registered component stockpiles: PDGJZ9NRNO: Disposable Heat Sink TXUOE9AZ8O: Lrg. Storage Unit Downloaded coordinate data. 00552_ Kicked S-10 Pest. 00553_ Kicked S-10 Pest out of the way. 00557_ Assault Rifle destroyed. 00559_ Aluminum Leg destroyed. 00559_ G-34 Mercenary destroyed. 00561_ Aluminum Leg destroyed. 00579_ S-10 Pest destroyed. 00591_ Aluminum Leg destroyed. 00598_ Acquired Hcp. Matter Pod. 00614_ Slammed into S-10 Pest. 00615_ Slammed into G-34 Mercenary. Map ----- +----------------------------------------------------+ | | | | | | | | | | | | | | | ?????????????????????????????????????????????????? | | ?????????????????????????????????????????????????? | | ?????????????????????????????????????????????????? | | ?????????????????????????????????????????????????? | | ?????????????????????????????????????????????????? | | ?????????????????????????????????????????????????? | | ?????????????????????????????????????????????????? | | ?????????????????????????????????????????????????? | | ?????????????????????????????????????????????????? | | ?????????????????????????????????????????????????? | | ?????????????????????????????????????????????????? | | ?????????????????????????????????????????????????? | | ?????????????????????????????????????????????????? | | ?????????????????????????????????????????????????? | | ??????????????????????????#####??????????????????? | | ???????????????????######## #??????????????????? | | ???????????????????#!!! # #??????????????????? | | ???????????????????#!!! g# #?????###+###??????? | | ???????????????????#! @sg ####### #??????? | | ???????????????????# s#g #??????? | | ???????????????????# # +??????? | | ???????????????????# # #??????? | | ???????????????????################## #??????? | | ???????????????????????????#######??## ##??????? | | ???????????????????????????#"""""#???# ######### | | ?????????????###############""T""##### # | | ????????????? + | | ???????????????????# [ # | | ???????????????????# """ #] | | ???????????????????# """ # | | ???????????????????# """ ##### | | ???????????????????# ### * #???# | | ???????????????????# #?# =%= #???#####+### | | ??????????????##???# #?# """ #???????????? | | ??????????##### #### #?# """ #???????????? | | ??????????# # #?# """ ?????????? | | ??????????# "T" # #?# [ ???????? | | ??????????# # #?# ??????? | | ??????????# != # #?#### #+##########?????? | | ??????????# != + #????# #????????????????? | | ??????????# """ # #????# #????????????????? | | ??????????# """ # #????# #????????????????? | | ??????????# """ # #????# ?????????????????? | +----------------------------------------------------+ Best States ------------- Heat Dissipation 28 Energy Generation 10 Energy Capacity 125 Matter Stores 292 Matter Capacity 500 Sight Range 16 Robot Scan Range 14 Terrain Scan Density 10 Armor Coverage 150 Evasion (%) 55 Recoil Reduction 2 Item Schematics ----------------- None Robot Schematics ------------------ None Fabricated ------------ Nothing Alien Tech Used ----------------- None Achievements -------------- None Challenges ------------ None Game ------ Seed ScatterDecoderMeganuke Manual? 0 Play Time 00:11:06 Cumulative 5.4 hours Start 2024.04.01 @ 15:29:32 End 2024.04.01 @ 15:37:32 Sessions 1 Manual Loads 0 Difficulty Rogue Special Mode None Game No. 8 Rogue 8 Adventurer 0 Explorer 0 Win Type - Total 0 Types 0/0/0/0/0/0/0/0/0 Lore% 4 Gallery% 10 Achievement% 12 Wizard Run 0 Options --------- Layout 1 ASCII 0 Keyboard 0 Movement Numpad Keybinds 0 Fullscreen 1 Font 24/Crisp Map View 50x35 Zoom Use 0% Tactical HUD 1 Map Filters NONE Filters NONE Steam 1 RUN: ed3b5815-f1b6-4712-adeb-9701065830f6